fUST/lending_fUST_20250213
["ID","MTS","AMOUNT","RATE_DAILY","PERIOD"]
[352876036,1739383842740,-511.13,0.00014516,2]
[352876038,1739383842749,-771.2096871,0.00014586,2]
[352876040,1739383842759,-2158.07,0.00014642,2]
[352876042,1739383842769,-709.72,0.00014642,2]
[352876043,1739383842778,-619.52,0.00014642,2]
[352876045,1739383842787,-739.14,0.00014642,2]
[352876047,1739383842798,-609.29,0.00014642,2]
[352876049,1739383842808,-6571.62,0.00014644,2]
[352876051,1739383842817,-3303.14,0.00014651,2]
[352876052,1739383842827,-3904.12,0.00014651,2]
[352876054,1739383842836,-500.0,0.00014651,2]
[352876056,1739383842846,-511.13,0.00014653,2]
[352876058,1739383842856,-2158.07,0.00014779,2]
[352876060,1739383842865,-709.72,0.00014779,2]
[352876061,1739383842874,-619.52,0.00014779,2]
[352876063,1739383842884,-739.14,0.00014779,2]
[352876065,1739383842894,-609.29,0.00014779,2]
[352876067,1739383842904,-6571.62,0.00014781,2]
[352876069,1739383842914,-3303.14,0.00014788,2]
[352876071,1739383842924,-3904.12,0.00014788,2]
[352876072,1739383842933,-500.0,0.00014788,2]
[352876074,1739383842943,-511.13,0.0001479,2]
[352876076,1739383842953,-151.0,0.000148,2]
[352876078,1739383842962,-2158.15,0.00014916,2]
[352876080,1739383842972,-709.83145257,0.00014916,2]
[352876082,1739383842982,-619.52,0.00014916,2]
[352876084,1739383842991,-739.26558051,0.00014916,2]
[352876085,1739383843001,-609.39,0.00014916,2]
[352876087,1739383843011,-6571.6452157,0.00014918,2]
[352876089,1739383843021,-3303.2524952,0.00014925,2]
[352876091,1739383843031,-3904.19318764,0.00014925,2]
[352876093,1739383843040,-452.44,0.00014925,2]
[352876095,1739383843051,-511.24,0.00014927,2]
[352876096,1739383843065,-2043.39,0.00015,2]
[352876098,1739383843074,-339.0,0.00015,5]
[352876100,1739383843083,-166.0,0.00015068,2]
[352876102,1739383843093,-396.0,0.00015263,2]
[352876104,1739383843105,-151.0,0.000153,2]
[352876106,1739383843115,-168.41666136,0.00015479,2]
[352876108,1739383843125,-160.0,0.00015778,3]
[352876109,1739383843139,-151.0,0.000158,2]
[352876111,1739383843150,-189.0,0.000158,2]
[352876113,1739383843159,-608.10871444,0.00015816,2]
[352876115,1739383843168,-151.0,0.00015892,2]
[352876117,1739383843178,-160.0,0.00015965,4]
[352876119,1739383843187,-3000.0,0.00016,2]
[352876120,1739383843197,-3000.0,0.0001601,2]
[352876122,1739383843206,-3000.0,0.0001602,2]
[352876124,1739383843215,-3000.0,0.0001603,2]
[352876132,1739383843302,-3000.0,0.0001604,2]
[352876134,1739383843313,-3000.0,0.0001605,2]
[352876136,1739383843322,-3000.0,0.0001606,2]
[352876138,1739383843332,-3000.0,0.0001607,2]
[352876140,1739383843341,-3000.0,0.0001608,2]
[352876141,1739383843351,-354.9109976,0.00016082,2]
[352876143,1739383843360,-354.9109976,0.00016082,2]
[352876145,1739383843369,-354.9109976,0.00016082,2]
[352876146,1739383843378,-354.9109976,0.00016082,2]
[352876148,1739383843388,-354.9109976,0.00016082,2]
[352876150,1739383843399,-352.9936179,0.00016082,2]
[352876152,1739383843408,-354.9109976,0.00016082,2]
[352876154,1739383843418,-354.9109976,0.00016082,2]
[352876156,1739383843428,-3000.0,0.0001609,2]
[352876158,1739383843437,-3000.0,0.000161,2]
[352876159,1739383843447,-3000.0,0.0001611,2]
[352876161,1739383843456,-3000.0,0.0001612,2]
[352876163,1739383843467,-3000.0,0.0001613,2]
[352876165,1739383843476,-3000.0,0.0001614,2]
[352876167,1739383843486,-3000.0,0.0001615,2]
[352876169,1739383843496,-160.0,0.00016152,5]
[352876171,1739383843505,-3000.0,0.0001616,2]
[352876173,1739383843515,-580.01,0.00016164,2]
[352876174,1739383843524,-3000.0,0.0001617,2]
[352876176,1739383843533,-3000.0,0.0001618,2]
[352876178,1739383843543,-3000.0,0.0001619,2]
[352876180,1739383843552,-3000.0,0.000162,2]
[352876182,1739383843576,-3000.0,0.0001621,2]
[352876184,1739383843586,-3000.0,0.0001622,2]
[352876186,1739383843595,-3000.0,0.0001623,2]
[352876187,1739383843604,-3000.0,0.0001624,2]
[352876189,1739383843619,-3000.0,0.0001625,2]
[352876191,1739383843629,-3000.0,0.0001626,2]
[352876193,1739383843639,-3000.0,0.0001627,2]
[352876195,1739383843648,-749.54735871,0.0001627,2]
[352876197,1739383843659,-749.54735871,0.0001627,2]
[352876199,1739383843668,-749.54735871,0.0001627,2]
[352876200,1739383843677,-749.54735871,0.0001627,2]
[352876202,1739383843687,-749.54735871,0.0001627,2]
[352876204,1739383843698,-749.54735871,0.0001627,2]
[352876206,1739383843711,-749.54735871,0.0001627,2]
[352876208,1739383843720,-749.54735871,0.0001627,2]
[352876210,1739383843729,-749.54735871,0.0001627,2]
[352876212,1739383843739,-749.54735871,0.0001627,2]
[352876213,1739383843748,-749.54735871,0.0001627,2]
[352876215,1739383843758,-749.54735871,0.0001627,2]
[352876217,1739383843768,-749.54735871,0.0001627,2]
[352876219,1739383843777,-749.54735871,0.0001627,2]
[352876221,1739383843787,-749.54735871,0.0001627,2]
[352876223,1739383843797,-749.54735871,0.0001627,2]
[352876225,1739383843807,-749.54735871,0.0001627,2]
[352876227,1739383843816,-749.54735871,0.0001627,2]
[352876228,1739383843825,-749.54735871,0.0001627,2]
[352876230,1739383843835,-749.54,0.0001627,2]
[352876232,1739383843844,-900.64430084,0.0001627,2]
[352876234,1739383843854,-900.64430084,0.0001627,2]
[352876236,1739383843864,-900.64430084,0.0001627,2]
[352876238,1739383843873,-900.64430084,0.0001627,2]
[352876239,1739383843882,-900.64430084,0.0001627,2]
[352876241,1739383843892,-900.64430084,0.0001627,2]
[352876243,1739383843901,-900.64430084,0.0001627,2]
[352876245,1739383843911,-900.64430084,0.0001627,2]
[352876247,1739383843920,-900.64430084,0.0001627,2]
[352876249,1739383843930,-900.64430084,0.0001627,2]
[352876251,1739383843939,-900.64430084,0.0001627,2]
[352876253,1739383843949,-900.64430084,0.0001627,2]
[352876254,1739383843959,-900.64430084,0.0001627,2]
[352876256,1739383843968,-900.64430084,0.0001627,2]
[352876258,1739383843978,-900.64430084,0.0001627,2]
[352876260,1739383843988,-900.64430084,0.0001627,2]
[352876262,1739383843997,-900.64430084,0.0001627,2]
[352876264,1739383844007,-900.64430084,0.0001627,2]
[352876266,1739383844018,-900.64430084,0.0001627,2]
[352876268,1739383844028,-900.64,0.0001627,2]
[352876270,1739383844037,-3000.0,0.0001628,2]
[352876272,1739383844046,-3000.0,0.0001629,2]
[352876274,1739383844055,-3000.0,0.000163,2]
[352876276,1739383844083,-151.0,0.000163,2]
[352876279,1739383844098,-3000.0,0.0001631,2]
[352876281,1739383844113,-3000.0,0.0001632,2]
[352876283,1739383844127,-3000.0,0.0001633,2]
[352876286,1739383844140,-160.0,0.00016338,6]
[352876288,1739383844154,-3000.0,0.0001634,2]
[352876291,1739383844168,-544.5,0.0001634,2]
[352876293,1739383844182,-3000.0,0.0001635,2]
[352876296,1739383844196,-3000.0,0.0001636,2]
[352876298,1739383844210,-3000.0,0.0001637,2]
[352876301,1739383844223,-3000.0,0.0001638,2]
[352876303,1739383844236,-3000.0,0.0001639,2]
[352876305,1739383844249,-3000.0,0.000164,2]
[352876308,1739383844263,-600.0,0.00016402,2]
[352876310,1739383844276,-3000.0,0.0001641,2]
[352876313,1739383844289,-3000.0,0.0001642,2]
[352876315,1739383844301,-2500.0,0.0001642,2]
[352876317,1739383844312,-2500.0,0.00016429,2]
[352876319,1739383844326,-3000.0,0.0001643,2]
[352876322,1739383844340,-2500.0,0.00016438,2]
[352876324,1739383844353,-188.0,0.00016438,2]
[352876327,1739383844368,-188.0,0.00016438,2]
[352876329,1739383844382,-188.0,0.00016438,2]
[352876332,1739383844396,-188.0,0.00016438,2]
[352876334,1739383844407,-188.0,0.00016438,2]
[352876336,1739383844417,-188.0,0.00016438,2]
[352876338,1739383844430,-188.0,0.00016438,2]
[352876341,1739383844445,-188.0,0.00016438,2]
[352876342,1739383844458,-188.0,0.00016438,2]
[352876343,1739383844469,-188.0,0.00016438,2]
[352876344,1739383844481,-153.03359446,0.00016438,2]
[352876345,1739383844495,-600.44121308,0.00016438,2]
[352876346,1739383844506,-500.0,0.00016438,2]
[352876347,1739383844517,-5906.931282,0.0001644,2]
[352876348,1739383844528,-339.0,0.000165,6]
[352876349,1739383844541,-160.0,0.00016525,7]
[352876350,1739383844553,-600.0,0.00016572,2]
[352876351,1739383844571,-151.0,0.000166,2]
[352876352,1739383844584,-160.0,0.00016712,8]
[352876353,1739383844599,-1023.52806974,0.00016743,2]
[352876354,1739383844611,-160.0,0.00016898,9]
[352876355,1739383844625,-2000.0,0.000169,2]
[352876356,1739383844639,-2000.0,0.000169,2]
[352876357,1739383844651,-306.0,0.00016904,2]
[352876358,1739383844663,-22610.11109123,0.00016911,2]
[352876359,1739383844677,-7635.33646327,0.00016929,2]
[352876360,1739383844689,-500.0,0.00016986,3]
[352876361,1739383844702,-189.25,0.00017,2]
[352876362,1739383844714,-158.51,0.00017,31]
[352876363,1739383844726,-158.51,0.00017,31]
[352876364,1739383844738,-158.51,0.00017,31]
[352876365,1739383844750,-158.51,0.00017,31]
[352876366,1739383844762,-158.51,0.00017,31]
[352876367,1739383844774,-158.51,0.00017,31]
[352876368,1739383844787,-158.51,0.00017,31]
[352876370,1739383844799,-2154.52708726,0.00017004,2]
[352876371,1739383844817,-250.0,0.00017065,2]
[352876373,1739383844829,-1748.94383698,0.00017067,2]
[352876374,1739383844840,-1748.94383698,0.00017067,2]
[352876376,1739383844850,-1748.94383698,0.00017067,2]
[352876378,1739383844859,-1748.94383698,0.00017067,2]
[352876380,1739383844868,-1748.94383698,0.00017067,2]
[352876382,1739383844877,-1748.94383698,0.00017067,2]
[352876384,1739383844887,-1748.94383698,0.00017067,2]
[352876385,1739383844896,-1748.94383698,0.00017067,2]
[352876387,1739383844905,-1748.94383698,0.00017067,2]
[352876389,1739383844915,-1748.94383698,0.00017067,2]
[352876391,1739383844925,-1748.94383698,0.00017067,2]
[352876393,1739383844935,-1748.94383698,0.00017067,2]
[352876395,1739383844944,-1748.94383698,0.00017067,2]
[352876398,1739383844954,-1748.94383698,0.00017067,2]
[352876400,1739383844964,-1748.94383698,0.00017067,2]
[352876402,1739383844975,-1748.94383698,0.00017067,2]
[352876404,1739383844984,-1748.94383698,0.00017067,2]
[352876406,1739383844994,-1748.94383698,0.00017067,2]
[352876408,1739383845004,-1748.94383698,0.00017067,2]
[352876425,1739383845173,-1748.94,0.00017067,2]
[352876428,1739383845189,-2101.50336863,0.00017067,2]
[352876430,1739383845198,-2101.50336863,0.00017067,2]
[352876432,1739383845209,-2101.50336863,0.00017067,2]
[352876434,1739383845219,-2101.50336863,0.00017067,2]
[352876436,1739383845228,-2101.50336863,0.00017067,2]
[352876438,1739383845237,-2101.50336863,0.00017067,2]
[352876440,1739383845246,-2101.50336863,0.00017067,2]
[352876442,1739383845256,-2101.50336863,0.00017067,2]
[352876444,1739383845265,-2101.50336863,0.00017067,2]
[352876446,1739383845276,-2101.50336863,0.00017067,2]
[352876448,1739383845285,-2101.50336863,0.00017067,2]
[352876450,1739383845295,-2101.50336863,0.00017067,2]
[352876452,1739383845306,-2101.50336863,0.00017067,2]
[352876454,1739383845319,-2101.50336863,0.00017067,2]
[352876456,1739383845330,-2101.50336863,0.00017067,2]
[352876458,1739383845339,-2101.50336863,0.00017067,2]
[352876460,1739383845348,-2101.50336863,0.00017067,2]
[352876462,1739383845357,-2101.50336863,0.00017067,2]
[352876464,1739383845367,-2101.50336863,0.00017067,2]
[352876466,1739383845376,-2101.5,0.00017067,2]
[352876468,1739383845385,-793.18365827,0.00017067,2]
[352876470,1739383845395,-153.0,0.00017077,2]
[352876472,1739383845404,-496.0,0.0001708,2]
[352876474,1739383845414,-500.0,0.00017082,2]
[352876476,1739383845424,-500.0,0.00017082,2]
[352876478,1739383845434,-395.65502659,0.00017084,2]
[352876480,1739383845443,-500.0,0.00017085,2]
[352876482,1739383845452,-500.0,0.00017085,2]
[352876485,1739383845461,-500.0,0.00017085,2]
[352876488,1739383845471,-500.0,0.00017085,2]
[352876491,1739383845480,-500.0,0.00017085,2]
[352876493,1739383845489,-500.0,0.00017085,2]
[352876495,1739383845498,-500.0,0.00017085,2]
[352876497,1739383845507,-500.0,0.00017085,2]
[352876500,1739383845518,-500.0,0.00017085,2]
[352876503,1739383845527,-500.0,0.00017085,2]
[352876506,1739383845536,-500.0,0.00017085,2]
[352876509,1739383845545,-241.651881,0.00017085,2]
[352876512,1739383845554,-500.0,0.00017085,2]
[352876515,1739383845566,-500.0,0.00017085,2]
[352876518,1739383845575,-500.0,0.00017085,2]
[352876521,1739383845585,-500.0,0.00017085,2]
[352876524,1739383845594,-500.0,0.00017085,2]
[352876527,1739383845603,-500.0,0.00017085,2]
[352876530,1739383845612,-500.0,0.00017085,2]
[352876533,1739383845623,-500.0,0.00017085,2]
[352876535,1739383845635,-266.0,0.00017085,2]
[352876537,1739383845645,-160.0,0.00017085,10]
[352876539,1739383845655,-169.52694022,0.00017085,5]
[352876541,1739383845664,-151.0,0.00017104,2]
[352876544,1739383845675,-151.0,0.00017104,2]
[352876547,1739383845684,-151.0,0.00017104,2]
[352876550,1739383845694,-151.0,0.00017104,2]
[352876553,1739383845704,-151.0,0.00017104,2]
[352876556,1739383845713,-208.531997,0.00017123,2]
[352876559,1739383845722,-150.24,0.0001714,2]
[352876561,1739383845732,-500.0,0.0001714,2]
[352876564,1739383845742,-500.0,0.0001714,2]
[352876566,1739383845751,-150.24,0.0001714,2]
[352876568,1739383845761,-783.0,0.0001714,2]
[352876570,1739383845770,-150.24,0.0001714,2]
[352876572,1739383845781,-150.24,0.0001714,2]
[352876574,1739383845792,-500.0,0.0001714,2]
[352876576,1739383845802,-150.24,0.0001714,2]
[352876578,1739383845813,-500.0,0.0001714,2]
[352876580,1739383845823,-500.0,0.0001714,2]
[352876582,1739383845832,-151.0,0.00017153,2]
[352876584,1739383845842,-151.0,0.00017153,2]
[352876585,1739383845851,-151.0,0.00017153,2]
[352876587,1739383845860,-151.0,0.00017153,2]
[352876589,1739383845869,-151.0,0.00017153,2]
[352876591,1739383845878,-154.024592,0.00017153,2]
[352876593,1739383845890,-151.642858,0.00017153,2]
[352876595,1739383845903,-151.0,0.00017153,2]
[352876597,1739383845914,-151.0,0.00017153,2]
[352876600,1739383845924,-151.0,0.00017153,2]
[352876601,1739383845934,-151.0,0.00017153,2]
[352876603,1739383845943,-151.0,0.00017153,2]
[352876606,1739383845953,-151.0,0.00017153,2]
[352876607,1739383845962,-151.0,0.00017153,2]
[352876610,1739383845972,-151.0,0.00017153,2]
[352876612,1739383845981,-151.0,0.00017153,2]
[352876613,1739383845991,-793.18365819,0.0001716,2]
[352876615,1739383846000,-16331.49621402,0.00017166,5]
[352876617,1739383846010,-377.52612374,0.00017166,5]
[352876619,1739383846019,-1920837.59582423,0.00017167,61]
[352876635,1739383846158,-442.42310921,0.00014752,2]
[352876637,1739383846167,-123954.09456114,0.00017167,61]
[352876639,1739383846181,-96032.57654049,0.00017167,61]
[352876641,1739383846192,-4872.14565237,0.00017167,61]
[352876741,1739383847148,-9904.15466869,0.00017167,61]
[352876783,1739383847551,-0.00089317,0.00017167,61]
[352876785,1739383847563,-257023.73481602,0.00017167,61]
[352876942,1739383849347,-442.42310921,0.00015524,2]
[352876944,1739383849356,-706.8923473,0.00016082,2]
[352876945,1739383849365,-500.0,0.0001714,2]
[352876948,1739383849375,-10398.33519155,0.00017167,61]
[352876984,1739383849745,-2339.784254,0.00017167,61]
[352877182,1739384825136,-494.42461147,0.00010058,2]
[352877183,1739384845149,-811.6475877,0.00010058,2]
[352877204,1739384949144,-5000.0,9.857e-05,2]
[352877205,1739384949168,-4786.17969295,9.957e-05,2]
[352877212,1739384963129,-425.46313075,9.857e-05,2]
[352877213,1739384963152,-190.70673593,9.957e-05,2]
[352877214,1739384966167,-23.11357112,9.957e-05,2]
[352877215,1739384966192,-300.0,0.00010487,2]
[352877216,1739384966215,-940.2946808,0.00010488,2]
[352877217,1739384966238,-400.0,0.00010685,2]
[352877218,1739384966276,-300.0,0.0001153,2]
[352877219,1739384966526,-574.72006589,0.00011758,2]
[352877271,1739385032227,-5602.32514938,0.00011757,2]
[352877272,1739385032240,-763.13671126,0.00011757,2]
[352877273,1739385032250,-500.0,0.0001176,2]
[352877274,1739385032261,-500.0,0.0001176,2]
[352877275,1739385032270,-500.0,0.0001176,2]
[352877276,1739385032280,-500.0,0.0001176,2]
[352877277,1739385032290,-500.0,0.0001176,2]
[352877279,1739385032300,-500.0,0.0001176,2]
[352877280,1739385032311,-500.0,0.0001176,2]
[352877282,1739385032320,-500.0,0.0001176,2]
[352877285,1739385032330,-500.0,0.0001176,2]
[352877288,1739385032339,-500.0,0.0001176,2]
[352877291,1739385032348,-500.0,0.0001176,2]
[352877293,1739385032358,-500.0,0.0001176,2]
[352877295,1739385032367,-500.0,0.00011761,2]
[352877296,1739385032378,-500.0,0.00011761,2]
[352877313,1739385032530,-500.0,0.00011761,2]
[352877316,1739385032545,-500.0,0.00011761,2]
[352877318,1739385032555,-500.0,0.00011761,2]
[352877320,1739385032565,-500.0,0.00011761,2]
[352877322,1739385032575,-500.0,0.00011761,2]
[352877324,1739385032585,-500.0,0.00011761,2]
[352877326,1739385032595,-500.0,0.00011761,2]
[352877328,1739385032605,-500.0,0.00011761,2]
[352877330,1739385032615,-500.0,0.00011761,2]
[352877332,1739385032625,-500.0,0.00011761,2]
[352877334,1739385032635,-500.0,0.00011761,2]
[352877336,1739385032644,-500.0,0.00011761,2]
[352877338,1739385032653,-500.0,0.00011761,2]
[352877340,1739385032663,-500.0,0.00011761,2]
[352877342,1739385032672,-500.0,0.00011761,2]
[352877343,1739385032681,-500.0,0.00011761,2]
[352877345,1739385032691,-500.0,0.00011761,2]
[352877347,1739385032700,-500.0,0.00011761,2]
[352877349,1739385032709,-500.0,0.00011761,2]
[352877351,1739385032719,-500.0,0.00011761,2]
[352877353,1739385032729,-500.0,0.00011761,2]
[352877355,1739385032738,-500.0,0.00011761,2]
[352877357,1739385032747,-500.0,0.00011761,2]
[352877359,1739385032756,-500.0,0.00011761,2]
[352877361,1739385032765,-500.0,0.00011761,2]
[352877363,1739385032774,-500.0,0.00011761,2]
[352877365,1739385032784,-500.0,0.00011761,2]
[352877367,1739385032792,-500.0,0.00011761,2]
[352877369,1739385032802,-188.19660481,0.00011761,2]
[352877371,1739385032811,-500.0,0.00011761,2]
[352877373,1739385032820,-500.0,0.00011761,2]
[352877375,1739385032829,-500.0,0.00011761,2]
[352877377,1739385032839,-500.0,0.00011761,2]
[352877379,1739385032849,-500.0,0.00011761,2]
[352877381,1739385032858,-500.0,0.00011761,2]
[352877383,1739385032867,-500.0,0.00011761,2]
[352877385,1739385032876,-500.0,0.00011761,2]
[352877387,1739385032886,-500.0,0.00011761,2]
[352877389,1739385032895,-500.0,0.00011761,2]
[352877391,1739385032904,-500.0,0.00011761,2]
[352877393,1739385032914,-500.0,0.00011761,2]
[352877395,1739385032923,-500.0,0.00011761,2]
[352877397,1739385032933,-500.0,0.00011761,2]
[352877399,1739385032943,-500.0,0.00011761,2]
[352877401,1739385032952,-500.0,0.00011761,2]
[352877403,1739385032962,-500.0,0.00011761,2]
[352877405,1739385032971,-500.0,0.00011761,2]
[352877407,1739385032980,-500.0,0.00011761,2]
[352877409,1739385032991,-500.0,0.00011761,2]
[352877411,1739385033000,-500.0,0.00011761,2]
[352877413,1739385033009,-500.0,0.00011761,2]
[352877415,1739385033019,-799.84,0.00011761,2]
[352877417,1739385033028,-1729.62,0.00011761,2]
[352877419,1739385033038,-500.0,0.00011761,2]
[352877421,1739385033050,-500.0,0.00011761,2]
[352877423,1739385033060,-500.0,0.00011761,2]
[352877425,1739385033070,-500.0,0.00011761,2]
[352877427,1739385033080,-500.0,0.00011761,2]
[352877429,1739385033090,-500.0,0.00011761,2]
[352877431,1739385033101,-500.0,0.00011761,2]
[352877433,1739385033110,-500.0,0.00011761,2]
[352877435,1739385033120,-500.0,0.00011762,2]
[352877437,1739385033131,-507.74716417,0.00011762,2]
[352877439,1739385033140,-500.0,0.00011762,2]
[352877441,1739385033149,-500.0,0.00011762,2]
[352877443,1739385033159,-500.0,0.00011762,2]
[352877445,1739385033167,-500.0,0.00011762,2]
[352877447,1739385033177,-500.0,0.00011762,2]
[352877449,1739385033186,-500.0,0.00011762,2]
[352877451,1739385033195,-500.0,0.00011762,2]
[352877453,1739385033205,-500.0,0.00011762,2]
[352877454,1739385033215,-500.0,0.00011762,2]
[352877456,1739385033225,-500.0,0.00011762,2]
[352877458,1739385033234,-500.0,0.00011762,2]
[352877461,1739385033244,-500.0,0.00011762,2]
[352877463,1739385033254,-500.0,0.00011762,2]
[352877465,1739385033263,-500.0,0.00011762,2]
[352877468,1739385033283,-500.0,0.00011762,2]
[352877470,1739385033294,-500.0,0.00011762,2]
[352877472,1739385033305,-500.0,0.00011762,2]
[352877474,1739385033315,-500.0,0.00011762,2]
[352877476,1739385033325,-500.0,0.00011762,2]
[352877478,1739385033335,-500.0,0.00011762,2]
[352877480,1739385033345,-500.0,0.00011762,2]
[352877482,1739385033355,-500.0,0.00011762,2]
[352877484,1739385033367,-500.0,0.00011762,2]
[352877486,1739385033377,-500.0,0.00011762,2]
[352877488,1739385033387,-500.0,0.00011762,2]
[352877490,1739385033397,-500.0,0.00011762,2]
[352877492,1739385033407,-500.0,0.00011762,2]
[352877494,1739385033417,-500.0,0.00011762,2]
[352877496,1739385033426,-500.0,0.00011762,2]
[352877498,1739385033436,-500.0,0.00011762,2]
[352877500,1739385033446,-500.0,0.00011762,2]
[352877502,1739385033456,-500.0,0.00011762,2]
[352877504,1739385033466,-500.0,0.00011762,2]
[352877506,1739385033475,-500.0,0.00011762,2]
[352877507,1739385033485,-500.0,0.00011762,2]
[352877509,1739385033495,-466.71739335,0.00011762,2]
[352877511,1739385033505,-500.0,0.00011762,2]
[352877513,1739385033515,-628.6,0.00011762,2]
[352877514,1739385033525,-500.0,0.00011762,2]
[352877516,1739385033535,-500.0,0.00011762,2]
[352877518,1739385033545,-500.0,0.00011762,2]
[352877521,1739385033554,-500.0,0.00011762,2]
[352877522,1739385033564,-500.0,0.00011762,2]
[352877525,1739385033574,-500.0,0.00011762,2]
[352877527,1739385033584,-500.0,0.00011762,2]
[352877529,1739385033594,-500.0,0.00011762,2]
[352877531,1739385033604,-500.0,0.00011762,2]
[352877533,1739385033615,-500.0,0.00011762,2]
[352877535,1739385033624,-500.0,0.00011762,2]
[352877537,1739385033634,-500.0,0.00011762,2]
[352877539,1739385033644,-500.0,0.00011763,2]
[352877541,1739385033654,-500.0,0.00011763,2]
[352877543,1739385033664,-500.0,0.00011763,2]
[352877545,1739385033673,-637.90186043,0.00011763,2]
[352877546,1739385033683,-500.0,0.00011763,2]
[352877548,1739385033693,-500.0,0.00011763,2]
[352877551,1739385033703,-500.0,0.00011763,2]
[352877553,1739385033713,-500.0,0.00011774,2]
[352877555,1739385033723,-500.0,0.00011774,2]
[352877557,1739385033732,-500.0,0.00011775,2]
[352877558,1739385033742,-500.0,0.00011897,2]
[352877561,1739385033752,-500.0,0.00011897,2]
[352877563,1739385033762,-500.0,0.00011897,2]
[352877565,1739385033772,-500.0,0.00011897,2]
[352877567,1739385033782,-500.0,0.00011897,2]
[352877569,1739385033792,-500.0,0.00011897,2]
[352877571,1739385033804,-500.0,0.00011897,2]
[352877573,1739385033814,-500.0,0.00011897,2]
[352877575,1739385033823,-500.0,0.00011897,2]
[352877577,1739385033833,-500.0,0.00011897,2]
[352877579,1739385033842,-500.0,0.00011897,2]
[352877581,1739385033852,-500.0,0.00011898,2]
[352877583,1739385033864,-500.0,0.00011898,2]
[352877585,1739385033874,-500.0,0.00011898,2]
[352877587,1739385033885,-500.0,0.00011898,2]
[352877589,1739385033895,-500.0,0.00011898,2]
[352877591,1739385033904,-500.0,0.00011898,2]
[352877593,1739385033914,-500.0,0.00011898,2]
[352877595,1739385033924,-500.0,0.00011898,2]
[352877597,1739385033934,-500.0,0.00011898,2]
[352877599,1739385033943,-500.0,0.00011898,2]
[352877600,1739385033953,-500.0,0.00011898,2]
[352877602,1739385033963,-500.0,0.00011898,2]
[352877604,1739385033972,-500.0,0.00011898,2]
[352877606,1739385033982,-500.0,0.00011898,2]
[352877608,1739385033991,-500.0,0.00011898,2]
[352877610,1739385034001,-500.0,0.00011898,2]
[352877612,1739385034011,-500.0,0.00011898,2]
[352877614,1739385034020,-500.0,0.00011898,2]
[352877617,1739385034031,-500.0,0.00011898,2]
[352877619,1739385034041,-500.0,0.00011898,2]
[352877621,1739385034054,-500.0,0.00011898,2]
[352877623,1739385034064,-500.0,0.00011898,2]
[352877625,1739385034073,-500.0,0.00011898,2]
[352877627,1739385034083,-500.0,0.00011898,2]
[352877629,1739385034092,-500.0,0.00011898,2]
[352877631,1739385034102,-500.0,0.00011898,2]
[352877633,1739385034112,-500.0,0.00011898,2]
[352877635,1739385034122,-500.0,0.00011898,2]
[352877637,1739385034135,-500.0,0.00011898,2]
[352877639,1739385034145,-500.0,0.00011898,2]
[352877641,1739385034155,-500.0,0.00011898,2]
[352877643,1739385034164,-500.0,0.00011898,2]
[352877645,1739385034174,-500.0,0.00011898,2]
[352877647,1739385034183,-500.0,0.00011898,2]
[352877649,1739385034193,-500.0,0.00011898,2]
[352877651,1739385034202,-500.0,0.00011898,2]
[352877653,1739385034212,-500.0,0.00011898,2]